[Event "Titled Tuesday Blitz November 14 Late 2023"]
[White "Lock, Gavin R"]
[Black "angelgab3"]
[WhiteFideId "408646"]
[WhiteElo "2268"]
[BlackElo "2564"]
[Result "0-1"]
[Round "6"]
[TimeControl "180+1"]
[Date "2023.11.14"]
[WhiteClock "0:00:08"]
[BlackClock "0:01:21"]
[Board "68"]

1. e4 {[%clk 0:02:59]}  c5 {[%clk 0:02:59]} 2. Nf3 {[%clk 0:02:59]}  d6 {[%clk 0:02:59]} 3. Bb5+ {[%clk 0:02:59]}  Nd7 {[%clk 0:02:59]} 4. c3 {[%clk 0:02:59]}  a6 {[%clk 0:02:58]} 5. Ba4 {[%clk 0:02:59]}  Nf6 {[%clk 0:02:58]} 6. Qe2 {[%clk 0:02:59]}  b5 {[%clk 0:02:57]} 7. Bc2 {[%clk 0:02:59]}  e5 {[%clk 0:02:56]} 8. d4 {[%clk 0:02:59]}  Be7 {[%clk 0:02:56]} 9. O-O {[%clk 0:02:58]}  O-O {[%clk 0:02:57]} 10. Rd1 {[%clk 0:02:46]}  Qc7 {[%clk 0:02:50]} 11. a4 {[%clk 0:02:44]}  cxd4 {[%clk 0:02:41]} 12. cxd4 {[%clk 0:02:43]}  Bb7 {[%clk 0:02:32]} 13. d5 {[%clk 0:02:11]}  Rfc8 {[%clk 0:02:26]} 14. Bd3 {[%clk 0:01:58]}  Nc5 {[%clk 0:02:24]} 15. Nbd2 {[%clk 0:01:40]}  Nxa4 {[%clk 0:02:20]} 16. Nf1 {[%clk 0:01:36]}  Nc5 {[%clk 0:02:19]} 17. Ng3 {[%clk 0:01:34]}  Nxd3 {[%clk 0:02:18]} 18. Qxd3 {[%clk 0:01:34]}  Qc2 {[%clk 0:02:16]} 19. Qxc2 {[%clk 0:01:21]}  Rxc2 {[%clk 0:02:17]} 20. b4 {[%clk 0:01:22]}  g6 {[%clk 0:02:11]} 21. h3 {[%clk 0:01:19]}  Rac8 {[%clk 0:02:11]} 22. Bd2 {[%clk 0:01:10]}  R2c4 {[%clk 0:02:08]} 23. Re1 {[%clk 0:01:10]}  Nd7 {[%clk 0:02:03]} 24. Nh2 {[%clk 0:01:07]}  h5 {[%clk 0:02:01]} 25. Rab1 {[%clk 0:01:06]}  Nb6 {[%clk 0:02:01]} 26. Red1 {[%clk 0:00:58]}  Na4 {[%clk 0:01:58]} 27. Nf3 {[%clk 0:00:52]}  Nc3 {[%clk 0:01:56]} 28. Bxc3 {[%clk 0:00:52]}  Rxc3 {[%clk 0:01:57]} 29. Nf1 {[%clk 0:00:50]}  Bd8 {[%clk 0:01:57]} 30. h4 {[%clk 0:00:48]}  Bb6 {[%clk 0:01:56]} 31. Rb2 {[%clk 0:00:42]}  R8c4 {[%clk 0:01:56]} 32. Ng5 {[%clk 0:00:40]}  Rc2 {[%clk 0:01:52]} 33. Rd2 {[%clk 0:00:36]}  Rxd2 {[%clk 0:01:47]} 34. Nxd2 {[%clk 0:00:35]}  Rc1+ {[%clk 0:01:46]} 35. Kh2 {[%clk 0:00:34]}  Bxf2 {[%clk 0:01:43]} 36. g3 {[%clk 0:00:31]}  Be3 {[%clk 0:01:35]} 37. Nb3 {[%clk 0:00:31]}  Rc7 {[%clk 0:01:35]} 38. Na5 {[%clk 0:00:29]}  Bb6 {[%clk 0:01:34]} 39. Nb3 {[%clk 0:00:22]}  Bc8 {[%clk 0:01:32]} 40. Kg2 {[%clk 0:00:21]}  Bg4 {[%clk 0:01:32]} 41. Ra2 {[%clk 0:00:20]}  Rc3 {[%clk 0:01:30]} 42. Rxa6 {[%clk 0:00:18]}  Be3 {[%clk 0:01:31]} 43. Na5 {[%clk 0:00:17]}  Rc2+ {[%clk 0:01:31]} 44. Kf1 {[%clk 0:00:16]}  Rf2+ {[%clk 0:01:22]} 45. Ke1 {[%clk 0:00:16]}  Rg2 {[%clk 0:01:22]} 46. Ra8+ {[%clk 0:00:11]}  Kg7 {[%clk 0:01:22]} 47. Nf3 {[%clk 0:00:08]}  Bxf3 {[%clk 0:01:21]} 0-1


[Site "https://www.chess.com"]

[Event "Titled Tuesday Blitz November 14 Late 2023"]
[White "Maltsevskaya, Aleksandra"]
[Black "Estrada Nieto, Julian"]
[WhiteFideId "24174041"]
[BlackFideId "5101018"]
[WhiteElo "2644"]
[BlackElo "2438"]
[Result "1-0"]
[Round "6"]
[TimeControl "180+1"]
[Date "2023.11.14"]
[WhiteClock "0:01:23"]
[BlackClock "0:00:01"]
[Board "70"]

1. Nf3 {[%clk 0:02:19]}  d5 {[%clk 0:02:59]} 2. g3 {[%clk 0:02:20]}  Nf6 {[%clk 0:02:59]} 3. d3 {[%clk 0:02:21]}  g6 {[%clk 0:02:41]} 4. Bg2 {[%clk 0:02:19]}  Bg7 {[%clk 0:02:42]} 5. O-O {[%clk 0:02:20]}  O-O {[%clk 0:02:42]} 6. Nbd2 {[%clk 0:02:21]}  c5 {[%clk 0:02:39]} 7. e4 {[%clk 0:02:22]}  dxe4 {[%clk 0:02:35]} 8. dxe4 {[%clk 0:02:22]}  Nc6 {[%clk 0:02:35]} 9. c3 {[%clk 0:02:23]}  Qc7 {[%clk 0:02:31]} 10. Qe2 {[%clk 0:02:22]}  Rd8 {[%clk 0:02:25]} 11. Nc4 {[%clk 0:02:21]}  Ng4 {[%clk 0:02:21]} 12. Bf4 {[%clk 0:02:21]}  Nge5 {[%clk 0:02:19]} 13. Rad1 {[%clk 0:02:18]}  Be6 {[%clk 0:02:16]} 14. Ncxe5 {[%clk 0:02:16]}  Nxe5 {[%clk 0:02:15]} 15. Ng5 {[%clk 0:02:16]}  Bxa2 {[%clk 0:01:55]} 16. Rxd8+ {[%clk 0:02:16]}  Rxd8 {[%clk 0:01:54]} 17. Ra1 {[%clk 0:02:16]}  Bb3 {[%clk 0:01:36]} 18. Qb5 {[%clk 0:02:16]}  c4 {[%clk 0:01:04]} 19. Rxa7 {[%clk 0:02:16]}  h6 {[%clk 0:00:52]} 20. Rxb7 {[%clk 0:02:13]}  Qd6 {[%clk 0:00:46]} 21. Bxe5 {[%clk 0:01:50]}  Qxe5 {[%clk 0:00:41]} 22. Qxe5 {[%clk 0:01:45]}  Bxe5 {[%clk 0:00:41]} 23. Nf3 {[%clk 0:01:45]}  Rd1+ {[%clk 0:00:31]} 24. Bf1 {[%clk 0:01:45]}  Bg7 {[%clk 0:00:25]} 25. Rxe7 {[%clk 0:01:42]}  Bc2 {[%clk 0:00:25]} 26. Kg2 {[%clk 0:01:40]}  Bf8 {[%clk 0:00:16]} 27. Re8 {[%clk 0:01:39]}  Kg7 {[%clk 0:00:16]} 28. Bxc4 {[%clk 0:01:39]}  Ba4 {[%clk 0:00:13]} 29. Rc8 {[%clk 0:01:35]}  Bc2 {[%clk 0:00:10]} 30. Rc7 {[%clk 0:01:34]}  Bxe4 {[%clk 0:00:06]} 31. Rxf7+ {[%clk 0:01:34]}  Kh8 {[%clk 0:00:06]} 32. Rxf8+ {[%clk 0:01:35]}  Kg7 {[%clk 0:00:06]} 33. Rf7+ {[%clk 0:01:34]}  Kh8 {[%clk 0:00:07]} 34. Rf4 {[%clk 0:01:34]}  Bc6 {[%clk 0:00:05]} 35. Rd4 {[%clk 0:01:26]}  Rb1 {[%clk 0:00:04]} 36. Bd5 {[%clk 0:01:26]}  Bd7 {[%clk 0:00:03]} 37. Ne5 {[%clk 0:01:25]}  Bf5 {[%clk 0:00:03]} 38. g4 {[%clk 0:01:25]}  Bc2 {[%clk 0:00:03]} 39. Be4 {[%clk 0:01:25]}  Bxe4+ {[%clk 0:00:01]} 40. Rxe4 {[%clk 0:01:26]}  Rxb2 {[%clk 0:00:01]} 41. Nxg6+ {[%clk 0:01:25]}  Kg7 {[%clk 0:00:02]} 42. Nh4 {[%clk 0:01:26]}  Kf6 {[%clk 0:00:03]} 43. Nf3 {[%clk 0:01:25]}  Rc2 {[%clk 0:00:04]} 44. c4 {[%clk 0:01:25]}  Rc3 {[%clk 0:00:03]} 45. h4 {[%clk 0:01:25]}  Kg6 {[%clk 0:00:02]} 46. Rf4 {[%clk 0:01:25]}  Kg7 {[%clk 0:00:02]} 47. Kg3 {[%clk 0:01:25]}  Ra3 {[%clk 0:00:02]} 48. c5 {[%clk 0:01:22]}  Rc3 {[%clk 0:00:01]} 49. Rf5 {[%clk 0:01:22]}  Kg6 {[%clk 0:00:01]} 50. h5+ {[%clk 0:01:22]}  Kg7 {[%clk 0:00:01]} 51. Rd5 {[%clk 0:01:23]}  Rc4 {[%clk 0:00:01]} 52. Nd4 {[%clk 0:01:23]}  Rc3+ {[%clk 0:00:02]} 53. Kf4 {[%clk 0:01:24]}  Ra3 {[%clk 0:00:02]} 54. f3 {[%clk 0:01:24]}  Rc3 {[%clk 0:00:02]} 55. Ke4 {[%clk 0:01:24]}  Kf6 {[%clk 0:00:02]} 56. f4 {[%clk 0:01:25]}  Rc1 {[%clk 0:00:02]} 57. g5+ {[%clk 0:01:25]}  Ke7 {[%clk 0:00:02]} 58. gxh6 {[%clk 0:01:25]}  Rh1 {[%clk 0:00:03]} 59. Rg5 {[%clk 0:01:23]}  Rh4 {[%clk 0:00:01]} 60. Ke5 {[%clk 0:01:23]} 1-0


[Site "https://www.chess.com"]

[Event "Titled Tuesday Blitz November 14 Late 2023"]
[White "Fiorito, Francisco"]
[Black "Marcziter, Dmitrii"]
[WhiteFideId "180165"]
[BlackFideId "13900765"]
[WhiteElo "2596"]
[BlackElo "2433"]
[Result "1-0"]
[Round "6"]
[TimeControl "180+1"]
[Date "2023.11.14"]
[WhiteClock "0:00:13"]
[BlackClock "0:00:00"]
[Board "72"]

1. Nf3 {[%clk 0:03:00]}  Nf6 {[%clk 0:02:59]} 2. g3 {[%clk 0:03:01]}  g6 {[%clk 0:02:58]} 3. Bg2 {[%clk 0:03:01]}  Bg7 {[%clk 0:02:59]} 4. O-O {[%clk 0:03:01]}  O-O {[%clk 0:02:59]} 5. c4 {[%clk 0:03:02]}  d5 {[%clk 0:02:57]} 6. d4 {[%clk 0:03:00]}  Nc6 {[%clk 0:02:56]} 7. cxd5 {[%clk 0:02:54]}  Nxd5 {[%clk 0:02:56]} 8. e4 {[%clk 0:02:53]}  Nb6 {[%clk 0:02:56]} 9. d5 {[%clk 0:02:54]}  Na5 {[%clk 0:02:56]} 10. Nc3 {[%clk 0:02:53]}  c6 {[%clk 0:02:56]} 11. Nd4 {[%clk 0:02:40]}  e5 {[%clk 0:02:50]} 12. Nb3 {[%clk 0:02:36]}  Nac4 {[%clk 0:02:46]} 13. a4 {[%clk 0:02:31]}  a5 {[%clk 0:02:44]} 14. Nd2 {[%clk 0:02:21]}  cxd5 {[%clk 0:02:41]} 15. exd5 {[%clk 0:02:18]}  Nd6 {[%clk 0:02:39]} 16. Re1 {[%clk 0:01:56]}  f5 {[%clk 0:02:34]} 17. Nf3 {[%clk 0:01:48]}  e4 {[%clk 0:02:29]} 18. Nd4 {[%clk 0:01:47]}  Qf6 {[%clk 0:02:23]} 19. Nb3 {[%clk 0:01:32]}  Nbc4 {[%clk 0:02:18]} 20. Qe2 {[%clk 0:01:29]}  b6 {[%clk 0:02:11]} 21. Bf4 {[%clk 0:01:22]}  Ba6 {[%clk 0:02:09]} 22. Red1 {[%clk 0:01:15]}  g5 {[%clk 0:02:05]} 23. Bxd6 {[%clk 0:01:12]}  Nxd6 {[%clk 0:02:05]} 24. Qc2 {[%clk 0:01:11]}  Rac8 {[%clk 0:02:02]} 25. Nd4 {[%clk 0:01:10]}  Rfe8 {[%clk 0:01:52]} 26. Ne6 {[%clk 0:01:06]}  Bc4 {[%clk 0:01:30]} 27. Qd2 {[%clk 0:01:03]}  Bb3 {[%clk 0:01:27]} 28. Rdc1 {[%clk 0:01:01]}  Nc4 {[%clk 0:01:25]} 29. Qe2 {[%clk 0:00:55]}  Ne5 {[%clk 0:01:19]} 30. Qb5 {[%clk 0:00:54]}  Bc4 {[%clk 0:01:11]} 31. Qxb6 {[%clk 0:00:52]}  Rb8 {[%clk 0:01:07]} 32. Qc7 {[%clk 0:00:49]}  Rxb2 {[%clk 0:00:53]} 33. Nd1 {[%clk 0:00:39]}  Rbb8 {[%clk 0:00:43]} 34. Ne3 {[%clk 0:00:37]}  Rec8 {[%clk 0:00:36]} 35. Qxg7+ {[%clk 0:00:34]}  Qxg7 {[%clk 0:00:35]} 36. Nxg7 {[%clk 0:00:35]}  Kxg7 {[%clk 0:00:30]} 37. Nxf5+ {[%clk 0:00:35]}  Kf6 {[%clk 0:00:30]} 38. Nd6 {[%clk 0:00:35]}  Rc7 {[%clk 0:00:21]} 39. Nxe4+ {[%clk 0:00:34]}  Kg6 {[%clk 0:00:19]} 40. d6 {[%clk 0:00:32]}  Rf7 {[%clk 0:00:14]} 41. Rd1 {[%clk 0:00:25]}  Rd8 {[%clk 0:00:13]} 42. Nc5 {[%clk 0:00:24]}  Rf6 {[%clk 0:00:08]} 43. d7 {[%clk 0:00:20]}  Rb6 {[%clk 0:00:04]} 44. Be4+ {[%clk 0:00:20]}  Kg7 {[%clk 0:00:04]} 45. Bb1 {[%clk 0:00:21]}  Kf6 {[%clk 0:00:04]} 46. Be4 {[%clk 0:00:20]}  Ke7 {[%clk 0:00:04]} 47. Rac1 {[%clk 0:00:19]}  Be6 {[%clk 0:00:03]} 48. Nxe6 {[%clk 0:00:17]}  Kxe6 {[%clk 0:00:03]} 49. Bxh7 {[%clk 0:00:16]}  Nf3+ {[%clk 0:00:01]} 50. Kg2 {[%clk 0:00:15]}  g4 {[%clk 0:00:00]} 51. Be4 {[%clk 0:00:13]} 1-0


[Site "https://www.chess.com"]

[Event "Titled Tuesday Blitz November 14 Late 2023"]
[White "Likvidator228"]
[Black "Arnold, Ken"]
[BlackFideId "2056836"]
[WhiteElo "2567"]
[BlackElo "2410"]
[Result "1/2-1/2"]
[Round "6"]
[TimeControl "180+1"]
[Date "2023.11.14"]
[WhiteClock "0:00:09"]
[BlackClock "0:00:12"]
[Board "74"]

1. d4 {[%clk 0:02:59]}  Nf6 {[%clk 0:02:26]} 2. c4 {[%clk 0:02:58]}  e6 {[%clk 0:02:26]} 3. g3 {[%clk 0:02:58]}  d5 {[%clk 0:02:24]} 4. Bg2 {[%clk 0:02:58]}  c6 {[%clk 0:02:24]} 5. Nf3 {[%clk 0:02:56]}  Bb4+ {[%clk 0:02:24]} 6. Bd2 {[%clk 0:02:55]}  Be7 {[%clk 0:02:23]} 7. Qc2 {[%clk 0:02:56]}  O-O {[%clk 0:02:22]} 8. O-O {[%clk 0:02:56]}  Nbd7 {[%clk 0:02:22]} 9. Bf4 {[%clk 0:02:57]}  Ne4 {[%clk 0:02:21]} 10. Nc3 {[%clk 0:02:55]}  Ndf6 {[%clk 0:02:20]} 11. Ne5 {[%clk 0:02:53]}  Nxc3 {[%clk 0:02:19]} 12. bxc3 {[%clk 0:02:54]}  Nd7 {[%clk 0:02:16]} 13. cxd5 {[%clk 0:02:52]}  Nxe5 {[%clk 0:02:15]} 14. Bxe5 {[%clk 0:02:52]}  exd5 {[%clk 0:02:14]} 15. e4 {[%clk 0:02:49]}  Be6 {[%clk 0:02:13]} 16. a4 {[%clk 0:02:34]}  dxe4 {[%clk 0:02:05]} 17. Bxe4 {[%clk 0:02:33]}  h6 {[%clk 0:02:02]} 18. Rab1 {[%clk 0:02:30]}  Qd7 {[%clk 0:02:00]} 19. a5 {[%clk 0:02:24]}  Bd8 {[%clk 0:01:41]} 20. a6 {[%clk 0:02:18]}  bxa6 {[%clk 0:01:34]} 21. Qe2 {[%clk 0:02:07]}  a5 {[%clk 0:01:27]} 22. Bd3 {[%clk 0:01:58]}  Bf5 {[%clk 0:01:14]} 23. Rfe1 {[%clk 0:01:40]}  Bxd3 {[%clk 0:01:12]} 24. Qxd3 {[%clk 0:01:40]}  Bb6 {[%clk 0:01:10]} 25. h4 {[%clk 0:01:24]}  Rfe8 {[%clk 0:01:08]} 26. Qf3 {[%clk 0:01:22]}  f6 {[%clk 0:00:59]} 27. Bf4 {[%clk 0:01:22]}  Qd5 {[%clk 0:00:53]} 28. Qg4 {[%clk 0:01:19]}  h5 {[%clk 0:00:51]} 29. Qg6 {[%clk 0:01:16]}  Qf7 {[%clk 0:00:49]} 30. Qf5 {[%clk 0:01:15]}  Rxe1+ {[%clk 0:00:44]} 31. Rxe1 {[%clk 0:01:14]}  Re8 {[%clk 0:00:44]} 32. Be3 {[%clk 0:01:06]}  g6 {[%clk 0:00:40]} 33. Qd3 {[%clk 0:01:04]}  f5 {[%clk 0:00:37]} 34. Rb1 {[%clk 0:01:00]}  Re4 {[%clk 0:00:34]} 35. Kg2 {[%clk 0:00:51]}  Qd5 {[%clk 0:00:32]} 36. f3 {[%clk 0:00:48]}  Re6 {[%clk 0:00:24]} 37. c4 {[%clk 0:00:49]}  Qd7 {[%clk 0:00:19]} 38. c5 {[%clk 0:00:34]}  Bc7 {[%clk 0:00:17]} 39. Rb7 {[%clk 0:00:23]}  Re7 {[%clk 0:00:14]} 40. Bf4 {[%clk 0:00:23]}  Qc8 {[%clk 0:00:14]} 41. Rxa7 {[%clk 0:00:21]}  Bd8 {[%clk 0:00:14]} 42. Rxe7 {[%clk 0:00:19]}  Bxe7 {[%clk 0:00:14]} 43. Qc4+ {[%clk 0:00:19]}  Kg7 {[%clk 0:00:14]} 44. Be5+ {[%clk 0:00:15]}  Bf6 {[%clk 0:00:14]} 45. Bd6 {[%clk 0:00:12]}  Qd7 {[%clk 0:00:13]} 46. d5 {[%clk 0:00:12]}  cxd5 {[%clk 0:00:12]} 47. Qxd5 {[%clk 0:00:13]}  Qf7 {[%clk 0:00:13]} 48. Qa8 {[%clk 0:00:13]}  Bc3 {[%clk 0:00:11]} 49. c6 {[%clk 0:00:10]}  Qa2+ {[%clk 0:00:11]} 50. Kh3 {[%clk 0:00:11]}  f4 {[%clk 0:00:11]} 51. Bxf4 {[%clk 0:00:11]}  Qe6+ {[%clk 0:00:10]} 52. Kg2 {[%clk 0:00:09]}  Qe2+ {[%clk 0:00:10]} 53. Kh3 {[%clk 0:00:07]}  Qf1+ {[%clk 0:00:10]} 54. Kh2 {[%clk 0:00:08]}  Qf2+ {[%clk 0:00:10]} 55. Kh3 {[%clk 0:00:08]}  Qf1+ {[%clk 0:00:11]} 56. Kh2 {[%clk 0:00:09]}  Qf2+ {[%clk 0:00:11]} 57. Kh3 {[%clk 0:00:09]}  Qf1+ {[%clk 0:00:12]} 1/2-1/2


[Site "https://www.chess.com"]

[Event "Titled Tuesday Blitz November 14 Late 2023"]
[White "Weimarraner"]
[Black "Zakarian, David"]
[BlackFideId "13301276"]
[WhiteElo "2528"]
[BlackElo "2406"]
[Result "1-0"]
[Round "6"]
[TimeControl "180+1"]
[Date "2023.11.14"]
[WhiteClock "0:01:13"]
[BlackClock "0:00:31"]
[Board "76"]

1. d4 {[%clk 0:03:00]}  Nf6 {[%clk 0:02:59]} 2. Nf3 {[%clk 0:03:00]}  e6 {[%clk 0:02:52]} 3. e3 {[%clk 0:03:01]}  b6 {[%clk 0:02:51]} 4. c4 {[%clk 0:03:02]}  Bb7 {[%clk 0:02:51]} 5. Nbd2 {[%clk 0:03:03]}  g6 {[%clk 0:02:51]} 6. Be2 {[%clk 0:03:02]}  Bg7 {[%clk 0:02:51]} 7. O-O {[%clk 0:03:02]}  O-O {[%clk 0:02:52]} 8. b3 {[%clk 0:03:02]}  d6 {[%clk 0:02:50]} 9. Bb2 {[%clk 0:03:02]}  Nbd7 {[%clk 0:02:49]} 10. Qc2 {[%clk 0:03:02]}  Qe7 {[%clk 0:02:48]} 11. e4 {[%clk 0:02:58]}  e5 {[%clk 0:02:47]} 12. d5 {[%clk 0:02:56]}  a5 {[%clk 0:02:46]} 13. Ne1 {[%clk 0:02:56]}  Bh6 {[%clk 0:02:28]} 14. Rd1 {[%clk 0:02:18]}  Nc5 {[%clk 0:02:26]} 15. Nd3 {[%clk 0:02:09]}  Nfxe4 {[%clk 0:02:00]} 16. Nxe4 {[%clk 0:02:09]}  Nxe4 {[%clk 0:01:58]} 17. Nxe5 {[%clk 0:02:08]}  f5 {[%clk 0:01:29]} 18. Nf3 {[%clk 0:01:44]}  Bc8 {[%clk 0:01:28]} 19. Rfe1 {[%clk 0:01:41]}  Qf7 {[%clk 0:01:13]} 20. Nd4 {[%clk 0:01:32]}  Nc5 {[%clk 0:01:08]} 21. Bf3 {[%clk 0:01:19]}  Bd7 {[%clk 0:01:08]} 22. Ne6 {[%clk 0:01:15]}  Nxe6 {[%clk 0:00:54]} 23. dxe6 {[%clk 0:01:16]}  Bxe6 {[%clk 0:00:31]} 24. Rxe6 {[%clk 0:01:13]} 1-0


[Site "https://www.chess.com"]

[Event "Titled Tuesday Blitz November 14 Late 2023"]
[White "Degtiarev, Evgeny"]
[Black "Osmak, Yuliia"]
[WhiteFideId "4149610"]
[BlackFideId "14101602"]
[WhiteElo "2389"]
[BlackElo "2506"]
[Result "1-0"]
[Round "6"]
[TimeControl "180+1"]
[Date "2023.11.14"]
[WhiteClock "0:00:04"]
[BlackClock "0:00:00"]
[Board "78"]

1. d4 {[%clk 0:02:47]}  Nf6 {[%clk 0:02:57]} 2. c4 {[%clk 0:02:47]}  e6 {[%clk 0:02:57]} 3. Nc3 {[%clk 0:02:46]}  d5 {[%clk 0:02:54]} 4. Nf3 {[%clk 0:02:45]}  Bb4 {[%clk 0:02:53]} 5. cxd5 {[%clk 0:02:41]}  exd5 {[%clk 0:02:51]} 6. Bg5 {[%clk 0:02:41]}  c6 {[%clk 0:02:40]} 7. Rc1 {[%clk 0:02:41]}  h6 {[%clk 0:02:35]} 8. Bh4 {[%clk 0:02:30]}  Bf5 {[%clk 0:02:26]} 9. e3 {[%clk 0:02:27]}  Nbd7 {[%clk 0:02:24]} 10. Bd3 {[%clk 0:02:26]}  Bxd3 {[%clk 0:02:23]} 11. Qxd3 {[%clk 0:02:27]}  O-O {[%clk 0:02:21]} 12. O-O {[%clk 0:02:26]}  Qa5 {[%clk 0:02:18]} 13. a3 {[%clk 0:02:25]}  Bxc3 {[%clk 0:02:10]} 14. Rxc3 {[%clk 0:02:19]}  Ne4 {[%clk 0:02:09]} 15. Rc2 {[%clk 0:02:19]}  f5 {[%clk 0:01:57]} 16. Bg3 {[%clk 0:02:04]}  Qa4 {[%clk 0:01:42]} 17. Ne5 {[%clk 0:01:57]}  Nxg3 {[%clk 0:01:31]} 18. hxg3 {[%clk 0:01:42]}  Nxe5 {[%clk 0:01:30]} 19. dxe5 {[%clk 0:01:43]}  Qe4 {[%clk 0:01:20]} 20. Qc3 {[%clk 0:01:32]}  Rae8 {[%clk 0:01:16]} 21. f4 {[%clk 0:01:31]}  Re6 {[%clk 0:01:09]} 22. Rd1 {[%clk 0:01:29]}  Qa4 {[%clk 0:01:04]} 23. b4 {[%clk 0:01:24]}  Rg6 {[%clk 0:00:59]} 24. Kf2 {[%clk 0:01:14]}  Kh7 {[%clk 0:00:50]} 25. Rd4 {[%clk 0:01:03]}  Qa6 {[%clk 0:00:36]} 26. Qc5 {[%clk 0:00:55]}  Re8 {[%clk 0:00:32]} 27. b5 {[%clk 0:00:51]}  cxb5 {[%clk 0:00:28]} 28. Qxd5 {[%clk 0:00:44]}  Qxa3 {[%clk 0:00:25]} 29. Qf7 {[%clk 0:00:34]}  Qe7 {[%clk 0:00:14]} 30. Qxf5 {[%clk 0:00:33]}  Qe6 {[%clk 0:00:11]} 31. Qe4 {[%clk 0:00:29]}  Kh8 {[%clk 0:00:09]} 32. Qxb7 {[%clk 0:00:22]}  Qg4 {[%clk 0:00:07]} 33. Qf3 {[%clk 0:00:22]}  Qf5 {[%clk 0:00:06]} 34. e4 {[%clk 0:00:21]}  Qf8 {[%clk 0:00:06]} 35. f5 {[%clk 0:00:18]}  Rb6 {[%clk 0:00:04]} 36. e6 {[%clk 0:00:18]}  b4 {[%clk 0:00:04]} 37. Rb2 {[%clk 0:00:10]}  Qc5 {[%clk 0:00:03]} 38. Qe3 {[%clk 0:00:09]}  a5 {[%clk 0:00:01]} 39. e5 {[%clk 0:00:05]}  Rb5 {[%clk 0:00:00]} 40. Re4 {[%clk 0:00:04]} 1-0


[Site "https://www.chess.com"]

[Event "Titled Tuesday Blitz November 14 Late 2023"]
[White "WindWhistler11"]
[Black "Golubenko, Valentina"]
[BlackFideId "4501993"]
[WhiteElo "2490"]
[BlackElo "2349"]
[Result "1-0"]
[Round "6"]
[TimeControl "180+1"]
[Date "2023.11.14"]
[WhiteClock "0:01:03"]
[BlackClock "0:00:11"]
[Board "81"]

1. Nf3 {[%clk 0:03:00]}  g6 {[%clk 0:02:58]} 2. g3 {[%clk 0:03:00]}  Bg7 {[%clk 0:02:58]} 3. Bg2 {[%clk 0:03:00]}  d5 {[%clk 0:02:58]} 4. O-O {[%clk 0:03:01]}  e5 {[%clk 0:02:58]} 5. d3 {[%clk 0:03:02]}  Nc6 {[%clk 0:02:57]} 6. Nbd2 {[%clk 0:03:02]}  Nge7 {[%clk 0:02:57]} 7. e4 {[%clk 0:03:03]}  O-O {[%clk 0:02:57]} 8. Rb1 {[%clk 0:03:00]}  f5 {[%clk 0:02:56]} 9. b4 {[%clk 0:03:00]}  a6 {[%clk 0:02:50]} 10. a4 {[%clk 0:02:59]}  b5 {[%clk 0:02:50]} 11. c3 {[%clk 0:02:44]}  Be6 {[%clk 0:02:40]} 12. Ng5 {[%clk 0:02:41]}  Bc8 {[%clk 0:02:35]} 13. Qb3 {[%clk 0:02:32]}  bxa4 {[%clk 0:02:33]} 14. Qa2 {[%clk 0:02:30]}  Kh8 {[%clk 0:01:56]} 15. exd5 {[%clk 0:02:26]}  h6 {[%clk 0:01:52]} 16. Nh3 {[%clk 0:02:18]}  Nb8 {[%clk 0:01:45]} 17. d6 {[%clk 0:02:06]}  Nec6 {[%clk 0:01:39]} 18. dxc7 {[%clk 0:01:55]}  Qxc7 {[%clk 0:01:38]} 19. Qxa4 {[%clk 0:01:53]}  Bb7 {[%clk 0:01:25]} 20. Nc4 {[%clk 0:01:51]}  Nd7 {[%clk 0:01:20]} 21. b5 {[%clk 0:01:43]}  axb5 {[%clk 0:01:13]} 22. Qxb5 {[%clk 0:01:42]}  Rab8 {[%clk 0:01:12]} 23. Ba3 {[%clk 0:01:36]}  Ba8 {[%clk 0:00:55]} 24. Bxf8 {[%clk 0:01:33]}  Rxb5 {[%clk 0:00:54]} 25. Bxg7+ {[%clk 0:01:34]}  Kxg7 {[%clk 0:00:54]} 26. Rxb5 {[%clk 0:01:35]}  Na7 {[%clk 0:00:38]} 27. Rb4 {[%clk 0:01:21]}  Bxg2 {[%clk 0:00:37]} 28. Kxg2 {[%clk 0:01:21]}  f4 {[%clk 0:00:19]} 29. Rfb1 {[%clk 0:01:11]}  Qc6+ {[%clk 0:00:18]} 30. f3 {[%clk 0:01:10]}  fxg3 {[%clk 0:00:17]} 31. hxg3 {[%clk 0:01:10]}  Nc5 {[%clk 0:00:17]} 32. Nf2 {[%clk 0:01:08]}  Nc8 {[%clk 0:00:15]} 33. Nxe5 {[%clk 0:01:04]}  Qd5 {[%clk 0:00:15]} 34. d4 {[%clk 0:01:03]}  Ne6 {[%clk 0:00:12]} 35. Rb7+ {[%clk 0:01:03]}  Kf6 {[%clk 0:00:11]} 36. Rf7+ {[%clk 0:01:02]}  Kg5 {[%clk 0:00:11]} 37. Ne4+ {[%clk 0:01:03]}  Kh5 {[%clk 0:00:11]} 38. Rh1# {[%clk 0:01:03]} 1-0


[Site "https://www.chess.com"]